bitfinex/quotes_SOLUSD_20250416
["timestamp","ask_amount","ask_price","bid_price","bid_amount"]
[1744825698738,1e-08,126.0,125.99,87.79553119]
[1744825699136,1e-08,126.0,125.99,7.93713786]
[1744825699554,1e-08,126.0,125.95,53.57407019]
[1744825699847,1e-08,126.0,125.94,19.84984025]
[1744825699848,1e-08,126.0,125.99,53.57407019]
[1744825700446,1e-08,126.0,125.99,61.79553119]
[1744825700650,53.5740702,126.0,125.94,27.78944151]
[1744825700823,1e-08,126.0,125.94,121.06495683]
[1744825701022,1e-08,126.0,125.99,53.71623176]
[1744825701421,1e-08,126.0,125.99,53.85839333]
[1744825701626,1e-08,126.0,125.99,107.43246352]
[1744825701852,1e-08,126.0,125.97,53.57407019]
[1744825702160,1e-08,126.0,125.98,53.57407019]
[1744825702453,1e-08,126.0,125.98,61.51183808]
[1744825702653,1e-08,126.0,125.99,53.57407019]
[1744825702832,1e-08,126.0,125.99,53.85839333]
[1744825703532,1e-08,126.0,125.99,152.22427395]
[1744825703737,13.0308,126.11,126.02,26.0]
[1744825704056,53.57407019,126.1,126.05,53.57407019]
[1744825704355,53.57407019,126.06,125.98,27.78218763]
[1744825704647,26.0,126.08,126.0,53.57407019]
[1744825704948,27.9,126.1,126.04,53.57407019]
[1744825705253,13.0308,126.11,126.07,53.57407019]
[1744825705752,13.0308,126.11,126.09,53.57407019]
[1744825705945,13.0308,126.11,126.07,0.14216157]
[1744825705946,6.1754,126.12,126.1,53.57407019]
[1744825706142,6.1754,126.12,126.08,53.57407019]
[1744825706342,6.1754,126.12,126.06,0.14216157]
[1744825706343,53.57407019,126.11,126.06,53.57407019]
[1744825706550,6.1754,126.12,126.08,53.57407019]
[1744825706759,6.1754,126.12,126.1,53.57407019]
[1744825707049,53.57407019,126.15,126.1,53.57407019]
[1744825707231,27.9,126.16,126.12,53.57407019]
[1744825707430,27.9,126.16,126.1,53.57407019]
[1744825707643,27.9,126.16,126.12,53.57407019]
[1744825707859,6.7069,126.19,126.15,53.57407019]
[1744825708044,0.063,126.21,126.18,53.57407019]
[1744825708230,0.063,126.21,126.14,0.28432314]
[1744825708432,0.063,126.21,126.18,61.49925643]
[1744825708937,0.063,126.21,126.19,53.57407019]
[1744825709250,40.9381,126.28,126.21,0.14216157]
[1744825709463,13.0381,126.28,126.24,53.57407019]
[1744825709837,66.61217019,126.28,126.23,53.57407019]
[1744825710153,13.0381,126.28,126.23,53.57407019]
[1744825710333,13.0381,126.28,126.24,53.57407019]
[1744825710530,13.0381,126.28,126.22,0.14216157]
[1744825710735,13.0381,126.28,126.25,53.57407019]
[1744825710936,0.063,126.28,126.27,53.57407019]
[1744825711639,0.063,126.28,126.27,53.85839333]
[1744825711834,0.063,126.28,126.23,27.72707901]
[1744825712048,0.063,126.28,126.27,53.85839333]
[1744825712452,13.2912,126.34,126.27,61.77793082]
[1744825712653,13.2912,126.34,126.31,53.57407019]
[1744825712849,13.2912,126.34,126.27,7.91953749]
[1744825713153,13.2912,126.34,126.3,53.57407019]
[1744825713357,13.2912,126.34,126.29,53.57407019]
[1744825713549,13.2912,126.34,126.31,53.57407019]
[1744825713746,13.2912,126.34,126.28,53.85839333]
[1744825714054,53.57407019,126.3,126.27,7.91953749]
[1744825714256,53.57407019,126.28,126.26,7.91998444]
[1744825714454,53.57407019,126.29,126.26,7.91998444]
[1744825714648,13.2912,126.34,126.27,53.57407019]
[1744825714959,6.6978,126.37,126.26,7.91998444]
[1744825714960,6.6978,126.37,126.31,53.57407019]
[1744825715165,60.27187019,126.37,126.32,53.57407019]
[1744825715464,53.57407019,126.38,126.33,53.57407019]
[1744825715666,12.3233,126.39,126.33,53.57407019]
[1744825715961,53.57407019,126.34,126.3,0.28432314]
[1744825716145,53.57407019,126.31,126.26,7.91998444]
[1744825716338,53.57407019,126.31,126.26,61.49405463]
[1744825716541,53.57407019,126.33,126.29,53.57407019]
[1744825716846,57.11511043,126.39,126.32,53.57407019]
[1744825716847,12.3233,126.39,126.32,53.57407019]
[1744825717046,53.57407019,126.34,126.3,0.14216157]
[1744825717361,18.64964886,126.38,126.28,7.91891035]
[1744825717362,53.57407019,126.36,126.28,7.91891035]
[1744825717667,53.57407019,126.33,126.28,27.71618624]
[1744825717846,18.79181043,126.38,126.29,53.57407019]
[1744825718047,53.57407019,126.33,126.28,81.29025643]
[1744825718245,38.3233,126.39,126.3,53.57407019]
[1744825718246,57.11511043,126.39,126.3,53.57407019]
[1744825718559,53.57407019,126.37,126.32,53.57407019]
[1744825718860,12.3233,126.39,126.31,0.14216157]
[1744825718861,53.57407019,126.36,126.31,53.57407019]
[1744825719362,53.57407019,126.38,126.34,53.57407019]
[1744825719562,53.57407019,126.38,126.33,53.57407019]
[1744825720071,53.57407019,126.36,126.31,53.85839333]
[1744825720260,12.3233,126.39,126.32,53.57407019]
[1744825720447,53.57407019,126.37,126.31,0.28432314]
[1744825720651,53.57407019,126.33,126.28,53.57407019]
[1744825720955,53.57407019,126.32,126.28,53.57407019]
[1744825721157,53.57407019,126.36,126.28,53.57407019]
[1744825721460,53.57407019,126.33,126.28,53.57407019]
[1744825721761,53.57407019,126.32,126.28,53.57407019]
[1744825721964,53.57407019,126.32,126.29,7.91828331]
[1744825722152,53.57407019,126.33,126.29,61.4923535]
[1744825722355,7.91280102,126.38,126.3,53.57407019]
[1744825722664,53.57407019,126.34,126.29,61.4923535]
[1744825723041,53.57407019,126.3,126.25,53.57407019]
[1744825723241,53.57407019,126.3,126.17,39.62677035]
[1744825723242,107.14814038,126.26,126.18,27.73815184]
[1744825723443,53.57407019,126.2,126.18,7.92518624]
[1744825723657,53.57407019,126.22,126.18,7.92518624]
[1744825723857,53.57407019,126.22,126.17,53.57407019]
[1744825724039,53.57407019,126.24,126.19,53.57407019]
[1744825724370,27.54,126.27,126.19,53.57407019]
[1744825724563,53.57407019,126.24,126.19,53.57407019]
[1744825724865,53.57407019,126.24,126.16,26.0]
[1744825725067,53.57407019,126.24,126.19,53.57407019]
[1744825725253,53.57407019,126.23,126.19,53.57407019]
[1744825725673,53.57407019,126.21,126.16,53.57407019]
[1744825725860,27.54,126.27,126.2,7.92393026]
[1744825726061,27.54,126.27,126.22,53.71623176]
[1744825726371,27.54,126.27,126.2,7.92393026]
[1744825726372,53.57407019,126.23,126.2,7.92393026]
[1744825726670,53.57407019,126.21,126.2,7.92393026]
[1744825726869,53.57407019,126.21,126.17,7.92581437]
[1744825727074,53.57407019,126.18,126.14,19.8191521]
[1744825727263,53.57407019,126.24,126.14,19.8191521]
[1744825727264,53.57407019,126.2,126.15,53.57407019]
[1744825727594,53.57407019,126.22,126.17,53.57407019]
[1744825727773,53.57407019,126.22,126.18,0.28432314]
[1744825727960,53.57407019,126.22,126.19,7.9245582]
[1744825728163,35.45965138,126.27,126.19,61.49862839]
[1744825728475,53.57407019,126.23,126.19,81.3100239]
[1744825728674,27.54,126.27,126.2,53.57407019]
[1744825728863,53.57407019,126.24,126.2,53.57407019]
[1744825729270,27.54,126.27,126.23,53.57407019]
[1744825729458,13.2574,126.29,126.25,53.57407019]
[1744825729863,13.2574,126.29,126.27,7.91953749]
[1744825730063,27.54,126.33,126.28,53.57407019]
[1744825730356,12.7231,126.34,126.3,53.57407019]
[1744825730566,66.29717019,126.34,126.29,53.57407019]
[1744825730773,12.7231,126.34,126.3,53.57407019]
[1744825731083,12.7231,126.34,126.27,28.00270437]
[1744825731084,53.57407019,126.31,126.27,7.91953749]
[1744825731253,12.7231,126.34,126.29,53.57407019]
[1744825731760,66.29717019,126.34,126.27,27.71838123]
[1744825731956,53.57407019,126.32,126.28,53.57407019]
[1744825732160,53.57407019,126.33,126.28,53.57407019]
[1744825732574,53.57407019,126.32,126.28,53.57407019]
[1744825732784,42.39515609,126.39,126.31,53.57407019]
[1744825733083,53.57407019,126.35,126.29,0.28432314]
[1744825733252,53.57407019,126.35,126.3,53.57407019]
[1744825733666,53.57407019,126.36,126.31,53.57407019]
[1744825733884,27.54,126.39,126.35,61.48859333]
[1744825734082,27.54,126.39,126.36,53.57407019]
[1744825734385,12.9303,126.4,126.36,53.57407019]
[1744825734760,66.50437019,126.4,126.35,27.70083101]
[1744825734961,66.50437019,126.4,126.36,53.57407019]
[1744825735162,12.9303,126.4,126.36,53.57407019]
[1744825735364,0.063,126.4,126.35,27.70083101]
[1744825735569,0.063,126.4,126.37,53.57407019]
[1744825735770,0.063,126.4,126.35,27.70083101]
[1744825735771,0.063,126.4,126.39,53.57407019]
[1744825735959,0.063,126.4,126.39,61.77041168]
[1744825736570,0.063,126.42,126.4,0.28432314]
[1744825736897,0.063,126.42,126.39,27.69206423]
[1744825737179,0.063,126.42,126.35,39.71477731]
[1744825737180,53.57407019,126.4,126.34,7.91514959]
[1744825737355,0.063,126.42,126.35,53.57407019]
[1744825737754,0.063,126.42,126.36,53.57407019]
[1744825737968,0.063,126.42,126.39,53.57407019]
[1744825738168,0.063,126.42,126.41,53.57407019]
[1744825738566,0.063,126.42,126.41,53.85839333]
[1744825740075,1e-08,126.42,126.41,160.1350405]
[1744825740286,1e-08,126.42,126.41,87.48483674]
[1744825740575,53.5740702,126.42,126.38,7.9126444]
[1744825740789,1e-08,126.42,126.41,53.57407019]
[1744825741373,53.5740702,126.42,126.38,7.9126444]
[1744825741779,1e-08,126.42,126.39,53.57407019]
[1744825741986,1e-08,126.42,126.35,26.0]
[1744825742170,53.57407019,126.4,126.36,7.91367969]
[1744825742369,53.57407019,126.38,126.35,7.91452314]
[1744825742689,53.57407019,126.36,126.26,28.52]
[1744825742887,53.57407019,126.36,126.31,53.57407019]
[1744825743073,53.57407019,126.38,126.33,53.57407019]
[1744825743273,12.3192,126.41,126.32,53.57407019]
[1744825743481,12.3192,126.41,126.34,53.57407019]
[1744825743796,53.57407019,126.39,126.32,0.14216157]
[1744825743995,53.57407019,126.38,126.33,53.57407019]
[1744825744373,12.3192,126.41,126.36,53.57407019]
[1744825744599,12.3192,126.41,126.37,53.57407019]
[1744825744600,65.89327019,126.41,126.37,53.57407019]
[1744825744897,53.57407019,126.4,126.35,79.85839333]
[1744825745100,12.3192,126.41,126.35,79.85839333]
[1744825745267,53.57407019,126.38,126.33,27.52]
[1744825745473,53.57407019,126.38,126.33,81.09407019]
[1744825745981,12.3192,126.41,126.35,7.91452314]
[1744825746185,12.3192,126.41,126.35,61.48859333]
[1744825746386,12.3192,126.41,126.38,53.57407019]
[1744825746575,12.3192,126.41,126.36,0.28432314]
[1744825746576,1e-08,126.42,126.36,53.85839333]
[1744825746781,53.5740702,126.42,126.38,53.57407019]
[1744825746998,1e-08,126.42,126.38,53.57407019]
[1744825747291,1e-08,126.42,126.36,53.57407019]
[1744825747498,53.5740702,126.42,126.35,27.70083101]
[1744825747699,1e-08,126.42,126.38,53.57407019]
[1744825748001,1e-08,126.42,126.41,61.48483674]
[1744825748201,1e-08,126.42,126.41,7.91076655]
[1744825748578,1e-08,126.42,126.4,7.91112532]
[1744825749304,1e-08,126.42,126.41,53.85839333]
[1744825749683,1e-08,126.42,126.41,53.57407019]
[1744825749881,1e-08,126.42,126.41,53.85839333]
[1744825750080,1e-08,126.42,126.41,61.48483674]
[1744825750299,1e-08,126.42,126.4,7.91129307]
[1744825750507,53.5740702,126.42,126.4,7.91129307]
[1744825751213,1e-08,126.42,126.4,7.91129307]
[1744825751883,53.5740702,126.42,126.4,7.91129307]
[1744825752082,53.5740702,126.42,126.38,19.78035639]
[1744825752083,53.5740702,126.42,126.38,27.69300079]
[1744825752312,1e-08,126.42,126.38,81.26707098]
[1744825752502,53.5740702,126.42,126.38,81.26707098]
[1744825752803,1e-08,126.42,126.38,81.26707098]
[1744825753177,53.5740702,126.42,126.38,81.26707098]
[1744825753899,1e-08,126.42,126.39,53.57407019]
[1744825754100,1e-08,126.42,126.41,7.91076655]
[1744825754291,1e-08,126.42,126.41,61.48483674]
[1744825754487,1e-08,126.42,126.41,7.91076655]
[1744825754701,107.14814039,126.42,126.37,7.91327055]
[1744825755004,107.14814039,126.42,126.37,61.48734074]
[1744825755005,1e-08,126.42,126.37,61.48734074]
[1744825755187,1e-08,126.42,126.41,53.57407019]
[1744825755389,1e-08,126.42,126.41,53.85839333]
[1744825755789,1e-08,126.42,126.41,53.57407019]
[1744825755990,53.5740702,126.42,126.37,53.69644693]
[1744825756192,53.57407019,126.38,126.33,7.91577614]
[1744825756408,53.57407019,126.37,126.33,7.91577614]
[1744825756590,53.57407019,126.35,126.33,7.91577614]
[1744825756791,53.57407019,126.36,126.33,7.91577614]
[1744825757085,53.57407019,126.34,126.31,7.91702953]
[1744825757699,53.57407019,126.32,126.28,7.91891035]
[1744825757922,53.57407019,126.29,126.27,7.94929505]
[1744825758096,53.57407019,126.3,126.27,0.03]
[1744825758597,53.57407019,126.28,126.27,0.03]
[1744825758902,92.65307019,126.36,126.27,0.03]
[1744825758903,53.57407019,126.3,126.27,0.03]
[1744825759203,53.57407019,126.31,126.27,0.03]
[1744825759411,53.57407019,126.29,126.27,0.03]
[1744825759702,53.57407019,126.28,126.27,0.03]
[1744825760129,7.91953749,126.27,126.19,19.81128186]
[1744825760281,53.57407019,126.22,126.2,7.92393026]
[1744825760482,53.57407019,126.21,126.2,7.92393026]
[1744825760680,53.57407019,126.21,126.18,7.92518624]
[1744825760908,12.6426,126.26,126.18,7.92518624]
[1744825760909,12.6426,126.26,126.18,61.49925643]
[1744825761210,53.57407019,126.23,126.18,81.31222203]
[1744825761419,53.57407019,126.23,126.19,53.57407019]
[1744825762221,12.6426,126.26,126.18,81.31222203]
[1744825762526,53.57407019,126.24,126.19,53.57407019]
[1744825762836,53.57407019,126.22,126.18,27.73815184]
[1744825763002,53.57407019,126.22,126.18,81.31222203]
[1744825763201,53.57407019,126.2,126.18,7.92518624]
[1744825763425,53.57407019,126.2,126.16,53.57407019]
[1744825763613,53.57407019,126.19,126.13,26.0]
[1744825763926,53.57407019,126.18,126.13,53.57407019]
[1744825764119,53.57407019,126.2,126.15,53.57407019]
[1744825764425,53.57407019,126.22,126.18,61.49925643]
[1744825764722,53.57407019,126.22,126.18,7.92518624]
[1744825765135,53.57407019,126.19,126.15,61.50114113]
[1744825765328,53.57407019,126.16,126.12,7.92895654]
[1744825765508,7.6854,126.21,126.12,61.50302673]
[1744825765509,53.57407019,126.17,126.12,61.50302673]
[1744825765703,53.57407019,126.17,126.13,53.57407019]
[1744825765904,53.57407019,126.18,126.13,53.57407019]
[1744825766223,53.57407019,126.22,126.18,7.92518624]
[1744825766424,53.57407019,126.21,126.17,7.9256019]
[1744825766624,53.57407019,126.22,126.17,61.49967209]
[1744825766934,53.57407019,126.25,126.2,53.57407019]
[1744825767224,53.57407019,126.24,126.19,53.57407019]
[1744825767420,53.57407019,126.21,126.17,7.9256019]
[1744825767645,53.57407019,126.23,126.18,53.57407019]
[1744825767825,20.56300609,126.26,126.19,53.57407019]
[1744825768125,53.57407019,126.21,126.17,7.9256019]
[1744825768426,53.57407019,126.24,126.14,46.10222071]
[1744825768427,53.57407019,126.19,126.15,7.92707094]
[1744825768722,53.57407019,126.18,126.15,7.92707094]
[1744825768929,53.57407019,126.16,126.07,27.76235424]
[1744825769118,53.57407019,126.11,126.08,30.0]
[1744825769313,12.8061,126.16,126.08,53.57407019]
[1744825769533,12.8061,126.16,126.09,53.57407019]
[1744825769839,12.8061,126.16,126.07,53.76235424]
[1744825769840,66.38017019,126.16,126.12,53.57407019]
[1744825770006,53.57407019,126.13,126.07,27.76235424]
[1744825770205,53.57407019,126.1,126.07,7.93210121]
[1744825770713,53.57407019,126.09,126.06,7.96267818]
[1744825770920,53.57407019,126.08,126.06,7.96267818]
[1744825771113,34.64707094,126.15,126.07,53.57407019]
[1744825771438,34.64707094,126.15,126.08,53.57407019]
[1744825771807,26.72,126.15,126.08,53.57407019]
[1744825772124,53.57407019,126.13,126.08,53.57407019]
[1744825772323,20.73264653,126.16,126.1,7.93021411]
[1744825772515,53.57407019,126.13,126.1,7.93021411]
[1744825773211,53.57407019,126.14,126.1,81.32981958]
[1744825773518,53.57407019,126.13,126.1,7.93021411]
[1744825773828,53.57407019,126.11,126.06,0.03]
[1744825774006,53.57407019,126.09,126.06,7.96263355]
[1744825774213,53.57407019,126.12,126.06,7.96263355]
[1744825774417,53.57407019,126.09,126.06,0.03]
[1744825774834,53.57407019,126.1,126.06,53.60407019]
[1744825775119,53.57407019,126.08,126.06,0.03]
[1744825775328,53.57407019,126.12,126.06,0.03]
[1744825775625,53.57407019,126.08,126.06,0.03]
[1744825775838,53.57407019,126.07,126.06,0.03]
[1744825776704,53.57407019,126.07,126.0,53.57407019]
[1744825776926,99.36588062,126.12,125.98,7.93776789]
[1744825776927,53.57407019,126.02,125.98,7.93776789]
[1744825777312,53.57407019,126.06,125.98,27.78218763]
[1744825777510,53.57407019,126.06,125.98,81.35625782]
[1744825777710,7.1629,126.07,125.98,27.78218763]
[1744825777911,60.73697019,126.07,126.03,53.57407019]
[1744825778113,60.73697019,126.07,126.02,53.57407019]
[1744825778416,53.57407019,126.06,126.01,53.57407019]
[1744825779022,53.57407019,126.05,126.01,53.57407019]
[1744825779324,53.57407019,126.02,125.99,37.93707322]
[1744825779512,53.57407019,126.05,126.01,53.57407019]
[1744825779711,53.57407019,126.05,126.0,53.57407019]
[1744825779906,53.57407019,126.03,125.99,91.51114341]
[1744825780111,7.1629,126.07,125.99,91.51114341]
[1744825780112,53.57407019,126.04,125.99,91.51114341]
[1744825780337,53.57407019,126.03,125.99,37.93707322]
[1744825780517,53.57407019,126.04,126.0,53.57407019]
[1744825780846,53.57407019,126.04,125.99,91.51114341]
[1744825781142,53.57407019,126.03,125.99,37.93707322]
[1744825781344,53.57407019,126.04,125.99,37.93707322]
[1744825781517,25.9,126.06,126.02,53.57407019]
[1744825781845,53.57407019,126.03,125.99,37.93707322]
[1744825782145,53.57407019,126.02,125.99,37.93707322]
[1744825782346,53.57407019,126.03,125.99,37.93707322]
[1744825782524,79.47407019,126.06,125.99,37.93707322]
[1744825782712,12.6768,126.08,126.05,53.57407019]
[1744825782909,53.57407019,126.12,126.07,53.57407019]
[1744825783233,53.57407019,126.11,126.06,53.57407019]
[1744825783542,53.57407019,126.1,126.06,53.57407019]
[1744825783741,45.8443,126.13,126.07,53.57407019]
[1744825783947,45.8443,126.13,126.09,53.57407019]
[1744825784241,19.9443,126.13,126.09,53.57407019]
[1744825784439,12.3776,126.13,126.1,53.57407019]
[1744825784644,79.49407019,126.18,126.12,53.57407019]
[1744825784645,45.7571,126.18,126.12,53.57407019]
[1744825784817,53.57407019,126.17,126.12,53.57407019]
[1744825785021,19.8371,126.18,126.14,53.57407019]
[1744825785237,19.8371,126.18,126.08,25.92]
[1744825785238,53.57407019,126.18,126.08,25.92]
[1744825785417,53.57407019,126.15,126.1,53.57407019]
[1744825785618,53.57407019,126.15,126.08,51.92]
[1744825785619,53.57407019,126.18,126.08,26.0]
[1744825785819,28.72936142,126.22,126.11,53.57407019]
[1744825786024,18.64964886,126.21,126.11,53.57407019]
[1744825786234,53.57407019,126.16,126.12,53.57407019]
[1744825786421,7.92267469,126.22,126.14,61.50176957]
[1744825786618,7.92267469,126.22,126.15,53.57407019]
[1744825786822,7.92267469,126.22,126.14,61.50176957]
[1744825786823,53.57407019,126.19,126.14,61.50176957]
[1744825787544,53.57407019,126.19,126.15,53.57407019]
[1744825787750,53.57407019,126.19,126.14,27.74694783]
[1744825787923,53.57407019,126.2,126.14,27.74694783]
[1744825788244,53.57407019,126.19,126.15,53.57407019]
[1744825788438,53.57407019,126.19,126.14,53.57407019]
[1744825788651,53.57407019,126.21,126.16,53.57407019]
[1744825788942,91.97397019,126.23,126.18,53.57407019]
[1744825789315,12.4799,126.23,126.19,53.57407019]
[1744825789932,7.91964569,126.27,126.2,53.57407019]
[1744825790137,53.57407019,126.25,126.2,53.57407019]
[1744825790332,53.57407019,126.23,126.19,61.49820237]
[1744825790518,53.57407019,126.25,126.2,53.57407019]
[1744825790919,12.0801,126.28,126.23,53.57407019]
[1744825791148,38.5438,126.33,126.27,53.57407019]
[1744825791324,12.6438,126.33,126.28,53.57407019]
[1744825791514,53.57407019,126.32,126.28,53.57407019]
[1744825791838,53.57407019,126.31,126.27,53.57407019]
[1744825792047,53.57407019,126.32,126.28,53.57407019]
[1744825792347,66.21787019,126.33,126.28,53.57407019]
[1744825792682,12.6438,126.33,126.29,53.57407019]
[1744825792818,0.063,126.33,126.29,53.57407019]
[1744825793551,53.57407019,126.32,126.28,7.91869355]
[1744825793720,0.063,126.33,126.28,61.49276374]
[1744825793926,53.63707019,126.33,126.28,61.49276374]
[1744825794147,0.063,126.33,126.29,53.57407019]
[1744825794522,0.063,126.33,126.3,7.91765637]
[1744825794722,0.063,126.33,126.3,61.49172656]
[1744825794951,0.063,126.33,126.32,53.57407019]
[1744825795324,0.063,126.33,126.3,81.28586749]
[1744825795325,53.63707019,126.33,126.3,7.91765637]
[1744825795635,53.57407019,126.32,126.28,7.91891035]
[1744825796034,0.063,126.33,126.29,53.57407019]
[1744825796237,53.63707019,126.33,126.29,53.57407019]
[1744825796624,0.063,126.33,126.3,7.91765637]
[1744825797132,53.63707019,126.33,126.3,7.91765637]
[1744825797654,53.63707019,126.33,126.29,7.91814797]
[1744825797851,53.57407019,126.3,126.25,19.80067533]
[1744825798152,53.57407019,126.28,126.26,7.92016473]
[1744825798345,53.57407019,126.28,126.24,7.92141951]
[1744825798549,53.57407019,126.28,126.24,61.4954897]
[1744825798848,0.063,126.33,126.27,53.57407019]
[1744825799073,0.063,126.33,126.28,53.57407019]
[1744825799478,53.63707019,126.33,126.28,53.57407019]
[1744825800056,0.063,126.33,126.31,53.57407019]
[1744825800252,0.063,126.33,126.32,53.85839333]
[1744825800781,0.063,126.33,126.29,27.7139916]
[1744825800969,0.063,126.33,126.3,0.28432314]
[1744825801177,0.063,126.33,126.3,53.57407019]
[1744825801672,53.57407019,126.31,126.27,7.91953749]
[1744825801974,53.57407019,126.29,126.26,7.92016473]
[1744825802163,0.063,126.33,126.26,81.29464676]
[1744825802485,0.063,126.33,126.3,0.28432314]
[1744825802671,0.063,126.33,126.29,0.28432314]
[1744825802877,0.063,126.33,126.31,53.57407019]
[1744825803480,0.063,126.33,126.32,53.57407019]
[1744825803696,53.63707019,126.33,126.26,33.92016473]
[1744825803875,53.57407019,126.27,126.22,25.88]
[1744825804059,53.57407019,126.3,126.21,81.30419104]
[1744825804060,7.91828331,126.29,126.21,81.30419104]
[1744825804253,53.57407019,126.27,126.22,0.28432314]
[1744825804477,53.57407019,126.29,126.24,53.57407019]
[1744825804690,53.57407019,126.29,126.21,27.73012085]
[1744825804870,53.57407019,126.27,126.22,53.57407019]
[1744825805202,53.57407019,126.28,126.23,53.57407019]
[1744825805350,7.91655258,126.32,126.22,53.71623176]
[1744825805351,53.57407019,126.27,126.22,53.71623176]
[1744825805555,53.57407019,126.26,126.21,107.30419104]
[1744825805787,53.57407019,126.25,126.21,7.92330243]
[1744825806258,12.4776,126.28,126.22,53.85839333]
[1744825806459,53.57407019,126.25,126.21,61.49737262]
[1744825806663,53.57407019,126.24,126.21,7.92330243]
[1744825806876,53.57407019,126.22,126.18,7.92518624]
[1744825807191,53.57407019,126.2,126.17,7.92555591]
[1744825807484,53.57407019,126.18,126.13,246.98]
[1744825807705,53.57407019,126.2,126.15,53.57407019]
[1744825807865,53.57407019,126.21,126.16,53.57407019]
[1744825808066,53.57407019,126.2,126.17,7.92581437]
[1744825808279,61.49595194,126.24,126.16,53.57407019]
[1744825808280,53.57407019,126.19,126.16,7.92644261]
[1744825808562,53.57407019,126.17,126.13,7.92832791]
[1744825808768,53.57407019,126.19,126.14,53.57407019]
[1744825809067,53.57407019,126.15,126.07,7.93210121]
[1744825809274,53.57407019,126.12,126.08,53.57407019]
[1744825809476,53.57407019,126.1,126.07,37.93210121]
[1744825809692,53.57407019,126.09,126.07,37.93210121]
[1744825809879,66.90207019,126.12,126.07,30.0]
[1744825810217,53.57407019,126.12,126.08,61.50554227]
[1744825810667,53.57407019,126.11,126.08,7.93147208]
[1744825810869,53.57407019,126.09,126.06,7.93273044]
[1744825811091,53.57407019,126.1,126.06,7.93273044]
[1744825811387,18.79181043,126.16,126.06,61.50680063]
[1744825811595,53.57407019,126.11,126.06,61.50680063]
[1744825811781,53.57407019,126.1,126.06,61.50680063]
[1744825811978,53.57407019,126.07,126.02,53.57407019]
[1744825812277,53.57407019,126.06,126.03,37.93461874]
[1744825812493,53.57407019,126.07,126.03,37.93461874]
[1744825812671,53.57407019,126.12,126.04,53.57407019]
[1744825812672,53.57407019,126.08,126.04,53.57407019]
[1744825812869,18.79181043,126.13,126.03,37.93461874]
[1744825812870,7.92840678,126.13,126.05,53.57407019]
[1744825813083,53.57407019,126.11,126.07,53.57407019]
[1744825813596,53.57407019,126.08,126.03,37.93461874]
[1744825813801,53.57407019,126.04,126.03,30.0]
[1744825814007,18.79181043,126.11,126.03,30.0]
[1744825814192,53.57407019,126.06,126.04,7.9339892]
[1744825814398,53.57407019,126.05,126.03,30.0]
[1744825814606,53.57407019,126.04,126.03,30.0]
[1744825814972,12.922,126.06,126.03,30.0]
[1744825815178,53.57407019,126.04,126.01,7.93549597]
[1744825815381,53.57407019,126.03,126.02,30.0]
[1744825816297,53.57407019,126.03,125.97,7.96815642]
[1744825816508,53.57407019,126.0,125.98,30.0]
[1744825816804,53.57407019,125.99,125.98,16.6667]
[1744825816992,53.57407019,125.99,125.97,0.03]
[1744825817206,53.57407019,125.94,125.82,81.39158727]
[1744825817395,53.57407019,125.94,125.84,30.0]
[1744825817738,18.79181043,125.94,125.84,30.0]
[1744825817879,53.57407019,125.85,125.84,30.0]
[1744825818598,53.57407019,125.85,125.84,9.2613]
[1744825818809,18.64964886,125.87,125.78,7.95031935]
[1744825818997,86.49943176,125.88,125.74,7.95291872]
[1744825818998,12.898,125.84,125.74,7.95291872]
[1744825819199,54.11095724,125.77,125.74,7.95291872]
[1744825819514,54.11095724,125.82,125.74,7.95291872]
[1744825819690,82.63695724,125.82,125.69,7.95608242]
[1744825819889,82.63695724,125.82,125.69,27.84628848]
[1744825819890,26.0,125.81,125.69,27.84628848]
[1744825820102,54.11095724,125.72,125.69,7.95608242]
[1744825820283,108.22191448,125.7,125.64,7.95924864]
[1744825820481,29.88,125.75,125.63,14.10300893]
[1744825820681,18.933972,125.74,125.63,14.10300893]
[1744825820984,18.64964886,125.74,125.63,14.10300893]
[1744825821479,54.11095724,125.7,125.63,14.10300893]
[1744825821681,54.11095724,125.67,125.63,14.10300893]
[1744825822003,26.0,125.72,125.63,6.14317755]
[1744825822193,54.11095724,125.7,125.63,6.14317755]
[1744825822499,33.9546036,125.72,125.63,6.14317755]
[1744825822500,18.79181043,125.71,125.63,6.14317755]
[1744825822699,26.0,125.71,125.63,6.14317755]
[1744825822914,26.14216157,125.72,125.63,6.14317755]
[1744825823109,54.11095724,125.64,125.63,6.14317755]
[1744825823418,54.11095724,125.7,125.63,6.14317755]
[1744825823591,13.1225,125.72,125.63,6.14317755]
[1744825823908,72.7606061,125.76,125.63,6.14317755]
[1744825824114,108.22191448,125.64,125.63,6.14317755]
[1744825824340,80.11095724,125.58,125.51,0.2]